lending/lending_fUSD_20251111
["ID","MTS","AMOUNT","RATE_DAILY","PERIOD"]
[393642578,1762872466314,-571.79,0.000457,30]
[393642579,1762872466398,-1388.62,0.000457,30]
[393642580,1762872466475,-169.64122107,0.00045747,120]
[393642581,1762872466552,-500000.0,0.0004575,120]
[393642582,1762872466628,-500000.0,0.000458,120]
[393642583,1762872466697,-500.0,0.00045836,30]
[393642584,1762872466765,-500.0,0.00045836,30]
[393642585,1762872466838,-1991.54550923,0.000459,120]
[393642586,1762872466911,-500000.0,0.000459,120]
[393642587,1762872466987,-500000.0,0.00046,120]
[393642588,1762872467070,-3500.0,0.00046,31]
[393642589,1762872467149,-2055.69440542,0.00046,120]
[393642590,1762872467233,-743.33512123,0.00046,120]
[393642591,1762872467322,-204.19586232,0.00046,30]
[393642592,1762872467408,-3213.48452601,0.00046,30]
[393642593,1762872467501,-447.15542565,0.00046,90]
[393642594,1762872467584,-500000.0,0.00046,120]
[393642595,1762872467658,-391499.26004944,0.00046,120]
[393642596,1762872478815,-150.0,0.000399,60]
[393642597,1762872478911,-174.11489106,0.00044533,30]
[393642598,1762872478984,-108500.73995056,0.00046,120]
[393642599,1762872479070,-1000000.0,0.00046,120]
[393642600,1762872479158,-2538.23191,0.0004609,31]
[393642601,1762872479245,-1500.0,0.000461,30]
[393642602,1762872479331,-1500.0,0.000461,30]
[393642603,1762872479412,-155.0,0.000461,120]
[393642604,1762872479483,-500000.0,0.000461,120]
[393642605,1762872479562,-500.0,0.0004611,30]
[393642606,1762872479638,-500.0,0.0004611,30]
[393642607,1762872479726,-163.8952416,0.0004613,120]
[393642608,1762872479797,-477.41,0.00046183,30]
[393642609,1762872479878,-153.0,0.000462,120]
[393642610,1762872479967,-500000.0,0.000462,120]
[393642611,1762872480064,-1000000.0,0.0004625,120]
[393642612,1762872480163,-500000.0,0.000463,120]
[393642613,1762872480258,-500.0,0.00046384,30]
[393642614,1762872480352,-500.0,0.00046384,30]
[393642615,1762872480441,-500000.0,0.000464,120]
[393642616,1762872480524,-269.10485589,0.000464,120]
[393642617,1762872480605,-169.21,0.00046457,30]
[393642618,1762872480693,-416.14,0.00046457,30]
[393642619,1762872480770,-181.57,0.00046457,30]
[393642620,1762872480847,-290.08,0.00046457,30]
[393642621,1762872480921,-2426.2,0.00046457,30]
[393642622,1762872480994,-150.0,0.00046457,30]
[393642623,1762872481069,-177.09,0.00046457,30]
[393642624,1762872481152,-150.0,0.00046457,30]
[393642625,1762872481237,-416.14,0.00046457,30]
[393642626,1762872481320,-549.62,0.00046457,30]
[393642627,1762872481405,-169.21,0.00046457,30]
[393642628,1762872481483,-354.18,0.00046457,30]
[393642629,1762872481564,-150.0,0.00046457,30]
[393642630,1762872481638,-830.96,0.00046457,30]
[393642631,1762872481709,-1099.24,0.00046457,30]
[393642632,1762872481779,-338.42,0.00046457,30]
[393642633,1762872481859,-548.34,0.00046457,30]
[393642634,1762872481938,-168.16,0.00046457,30]
[393642635,1762872482014,-150.0,0.00046457,30]
[393642636,1762872482100,-150.0,0.00046457,30]
[393642637,1762872482192,-1444.0,0.00046466,120]
[393642638,1762872482279,-500000.0,0.000465,120]
[393642639,1762872482365,-372089.94315089,0.000465,120]
[393642640,1762872486616,-127910.05684911,0.000465,120]
[393642641,1762872486703,-1000000.0,0.000465,120]
[393642642,1762872486785,-385.205,0.00046575,120]
[393642643,1762872486866,-500.0,0.00046658,30]
[393642644,1762872486947,-500.0,0.00046658,30]
[393642645,1762872487033,-150.0,0.00046698,120]
[393642646,1762872487122,-500000.0,0.0004675,120]
[393642647,1762872487206,-368.15505166,0.0004679,90]
[393642648,1762872487297,-409.55811134,0.000468,120]
[393642649,1762872487391,-605.73153571,0.000468,120]
[393642650,1762872487481,-500000.0,0.000468,120]
[393642651,1762872487571,-153.0,0.000469,120]
[393642652,1762872487666,-1442.7138422,0.000469,120]
[393642653,1762872487762,-500000.0,0.000469,120]
[393642654,1762872487856,-500.0,0.00046932,30]
[393642655,1762872487947,-981.29,0.00046932,30]
[393642656,1762872488040,-211.0,0.0004698,30]
[393642657,1762872488136,-211.0,0.0004698,30]
[393642658,1762872488232,-211.0,0.0004698,30]
[393642659,1762872488330,-500000.0,0.00047,120]
[393642660,1762872488419,-1000000.0,0.00047,120]
[393642661,1762872488503,-611.0,0.00047,30]
[393642662,1762872488584,-2500.0,0.00047,120]
[393642663,1762872488670,-500000.0,0.00047,120]
[393642664,1762872488750,-2538.23191,0.0004709,35]
[393642665,1762872488830,-1500.0,0.000471,30]
[393642666,1762872488909,-155.0,0.000471,120]
[393642667,1762872489000,-358157.05769998,0.000471,120]
[393642668,1762872491872,-420.0,0.00045,120]
[393642669,1762872491951,-456.63428446,0.0004625,120]
[393642670,1762872492033,-141842.94230002,0.000471,120]
[393642671,1762872492297,-150.0,0.00047114,120]
[393642672,1762872492375,-571.79,0.000472,30]
[393642673,1762872492460,-1388.62,0.000472,30]
[393642674,1762872492549,-500.0,0.00047206,30]
[393642675,1762872492633,-500000.0,0.0004725,120]
[393642676,1762872492714,-150.0,0.00047279,30]
[393642677,1762872492798,-150.0,0.00047279,30]
[393642678,1762872492889,-150.0,0.00047279,30]
[393642679,1762872492983,-150.0,0.00047279,30]
[393642680,1762872493059,-150.0,0.00047279,30]
[393642681,1762872493145,-212.93735845,0.00047308,120]
[393642682,1762872493228,-500.0,0.0004748,30]
[393642683,1762872493304,-500000.0,0.000475,120]
[393642684,1762872493378,-2279.685047,0.000475,120]
[393642685,1762872493448,-500000.0,0.000475,120]
[393642686,1762872493516,-770.41,0.00047534,120]
[393642687,1762872493586,-153.0,0.000477,120]
[393642688,1762872493663,-500000.0,0.0004775,120]
[393642689,1762872493737,-500.0,0.00047754,30]
[393642690,1762872493814,-3313.03391024,0.0004789,120]
[393642691,1762872493885,-2000.0,0.00047945,120]
[393642692,1762872493965,-2000.0,0.00047945,120]
[393642693,1762872494042,-2000.0,0.00047945,120]
[393642694,1762872494122,-2000.0,0.00047945,120]
[393642695,1762872494208,-2000.0,0.00047945,120]
[393642696,1762872494291,-2000.0,0.00047945,120]
[393642697,1762872494375,-2000.0,0.00047945,120]
[393642698,1762872494451,-2000.0,0.00047945,120]
[393642699,1762872494528,-2000.0,0.00047945,120]
[393642700,1762872494606,-2000.0,0.00047945,120]
[393642701,1762872494678,-178.0,0.00047945,120]
[393642702,1762872494748,-1373.75,0.00048,120]
[393642703,1762872494823,-1000.0,0.00048,120]
[393642704,1762872494907,-500000.0,0.00048,120]
[393642705,1762872494987,-1801.14478443,0.00048,120]
[393642706,1762872495073,-237.93697122,0.00048,120]
[393642707,1762872495159,-3062.39980552,0.00048,120]
[393642708,1762872495243,-492.34219774,0.00048,120]
[393642709,1762872495323,-150.0,0.00048,120]
[393642710,1762872495403,-150.0,0.00048,120]
[393642711,1762872495479,-700.0,0.00048,120]
[393642712,1762872495559,-477.64,0.00048084,30]
[393642713,1762872495640,-477.64,0.00048084,30]
[393642714,1762872495717,-477.64,0.00048084,30]
[393642715,1762872495789,-474.73,0.00048084,30]
[393642716,1762872495865,-1500.0,0.000481,30]
[393642717,1762872495938,-155.0,0.000481,120]
[393642718,1762872496011,-150.0,0.00048101,30]
[393642719,1762872496091,-150.0,0.00048101,30]
[393642720,1762872496175,-150.0,0.00048101,30]
[393642721,1762872496257,-150.0,0.00048101,30]
[393642722,1762872496339,-302.48,0.00048101,30]
[393642723,1762872496416,-300.0,0.00048102,30]
[393642724,1762872496490,-169.21,0.00048102,30]
[393642725,1762872496565,-1206.87,0.00048102,30]
[393642726,1762872496643,-150.0,0.00048102,30]
[393642727,1762872496719,-1206.87,0.00048102,30]
[393642728,1762872496792,-169.21,0.00048102,30]
[393642729,1762872496865,-1206.87,0.00048102,30]
[393642730,1762872496939,-169.21,0.00048102,30]
[393642731,1762872497011,-169.21,0.00048102,30]
[393642732,1762872497088,-169.21,0.00048102,30]
[393642733,1762872497173,-338.09,0.00048102,30]
[393642734,1762872497251,-150.0,0.00048102,30]
[393642735,1762872497334,-549.62,0.00048102,30]
[393642736,1762872497416,-150.0,0.00048102,30]
[393642737,1762872497494,-1933.66,0.00048102,30]
[393642738,1762872497569,-150.0,0.00048102,30]
[393642739,1762872497637,-150.0,0.00048102,30]
[393642740,1762872497708,-477.64,0.00048102,30]
[393642741,1762872497778,-300.29,0.00048102,30]
[393642742,1762872497850,-698.95,0.00048102,30]
[393642743,1762872497925,-150.0,0.00048102,30]
[393642744,1762872498001,-477.64,0.00048102,30]
[393642745,1762872498078,-150.0,0.00048102,30]
[393642746,1762872498155,-477.64,0.00048102,30]
[393642747,1762872498237,-150.0,0.00048102,30]
[393642748,1762872498320,-150.0,0.00048102,30]
[393642749,1762872498410,-477.64,0.00048102,30]
[393642750,1762872498489,-477.64,0.00048102,30]
[393642751,1762872498563,-500.0,0.00048219,120]
[393642752,1762872498639,-500.0,0.00048219,120]
[393642753,1762872498710,-500.0,0.00048219,120]
[393642754,1762872498781,-500.0,0.00048219,120]
[393642755,1762872498858,-311.96832469,0.00048219,120]
[393642756,1762872498939,-153.0,0.000484,120]
[393642757,1762872499016,-1155.615,0.00048493,120]
[393642758,1762872499093,-3000.0,0.000485,120]
[393642759,1762872499174,-834.9,0.00048737,120]
[393642760,1762872499255,-316.47136385,0.000488,120]
[393642761,1762872499335,-571.79,0.000488,30]
[393642762,1762872499411,-1388.62,0.000488,30]
[393642763,1762872499486,-374.30574777,0.000489,120]
[393642764,1762872499567,-175.64,0.00048928,120]
[393642765,1762872499644,-211.0,0.0004899,30]
[393642766,1762872499723,-211.0,0.0004899,30]
[393642767,1762872499805,-211.0,0.0004899,30]
[393642768,1762872499901,-212.0,0.0004899,30]
[393642769,1762872499985,-211.0,0.0004899,30]
[393642770,1762872500072,-520.83013784,0.00049,120]
[393642771,1762872500157,-2085.77477541,0.00049,120]
[393642772,1762872500246,-180.47192187,0.00049,120]
[393642773,1762872500466,-1140.7435786,0.00049,120]
[393642774,1762872500551,-1500.0,0.000491,30]
[393642775,1762872500629,-153.0,0.000491,120]
[393642776,1762872500706,-155.0,0.000492,120]
[393642777,1762872500780,-1171.4154058,0.000493,120]
[393642778,1762872500860,-1170.45954845,0.0004931,30]
[393642779,1762872500941,-200.0,0.00049315,120]
[393642780,1762872501025,-200.0,0.00049315,120]
[393642781,1762872501110,-200.0,0.00049315,120]
[393642782,1762872501195,-200.0,0.00049315,120]
[393642783,1762872501282,-216.88600819,0.00049315,120]
[393642784,1762872501364,-500.0,0.00049315,120]
[393642785,1762872501441,-500.0,0.00049315,120]
[393642786,1762872501526,-500.0,0.00049315,120]
[393642787,1762872501621,-500.0,0.00049315,120]
[393642788,1762872501699,-432.42536821,0.00049315,120]
[393642789,1762872501783,-373.07535214,0.00049315,120]
[393642790,1762872501870,-500.0,0.00049315,120]
[393642791,1762872501952,-315.39077705,0.00049315,120]
[393642792,1762872502032,-500.0,0.00049315,120]
[393642793,1762872502115,-600.0,0.00049315,37]
[393642794,1762872502194,-999.99999901,0.00049315,120]
[393642795,1762872502377,151.0,0.00049315,30]
[393642796,1762872502466,150.0,0.00047279,30]
[393642797,1762872502551,151.0,0.00049315,30]
[393642798,1762872502634,151.0,0.00049315,30]
[393642799,1762872502713,151.0,0.00049315,30]
[393642800,1762872502798,151.0,0.00049315,30]
[393642801,1762872502889,151.0,0.00049315,30]
[393642802,1762872502981,151.0,0.00049315,30]
[393642803,1762872503067,151.0,0.00049315,30]
[393642804,1762872503157,151.0,0.00049315,30]
[393642805,1762872503256,151.0,0.00049315,30]
[393642806,1762872503342,151.0,0.00049315,30]
[393642807,1762872503429,349.56664476,0.00047695,120]
[393642808,1762872503515,151.0,0.00049315,30]
[393642809,1762872503604,151.0,0.00049315,30]
[393642810,1762872503703,151.0,0.00049315,30]
[393642811,1762872503801,151.0,0.00049315,30]
[393642812,1762872503902,234.0590399,0.00047695,120]
[393642813,1762872504418,151.0,0.00049315,30]
[393642816,1762872530973,-317.66,0.0004,30]
[393642817,1762872531069,-317.66,0.000431,30]
[393642818,1762872531152,-317.66,0.000464,30]
[393642819,1762872531245,-317.66,0.000487,30]
[393642820,1762872531326,-404.019561,0.00049065,120]
[393642821,1762872531403,-151.0,0.00049315,30]
[393642822,1762872531476,-151.0,0.00049315,30]
[393642823,1762872531552,-151.0,0.00049315,30]
[393642824,1762872531630,-151.0,0.00049315,30]
[393642825,1762872531706,-151.0,0.00049315,30]
[393642826,1762872531775,-151.0,0.00049315,30]
[393642827,1762872531849,-151.0,0.00049315,30]
[393642828,1762872531925,-151.0,0.00049315,30]
[393642829,1762872531998,-151.0,0.00049315,30]
[393642830,1762872532079,-151.0,0.00049315,30]
[393642831,1762872532163,-151.0,0.00049315,30]
[393642832,1762872532242,-151.0,0.00049315,30]
[393642833,1762872532319,-151.0,0.00049315,30]
[393642834,1762872532389,-151.0,0.00049315,30]
[393642835,1762872532465,-151.0,0.00049315,30]
[393642836,1762872532541,-151.0,0.00049315,30]
[393642837,1762872532609,-151.0,0.00049315,30]
[393642838,1762872532675,-151.0,0.00049315,30]
[393642839,1762872532740,-151.0,0.00049315,30]
[393642840,1762872532809,-151.0,0.00049315,30]
[393642841,1762872532884,-281.04205627,0.00049315,30]
[393642842,1762872535102,174.11489106,0.0004485,30]
[393642843,1762872536291,1000.0,0.00039966,120]
[393642844,1762872536509,1000.0,0.0004024,120]
[393642845,1762872536744,1000.0,0.00040514,120]
[393642846,1762872536971,1000.0,0.00040788,120]
[393642847,1762872537204,1000.0,0.00041062,120]
[393642857,1762872552515,-694.31,0.000401,30]
[393642858,1762872552589,-694.31,0.000434,30]
[393642859,1762872552659,-694.31,0.000464,30]
[393642860,1762872552732,-694.31,0.000487,30]
[393642861,1762872552821,-500.0,0.00049315,120]
[393642862,1762872552898,-1540.82,0.00049452,120]
[393642863,1762872552969,-217.64231924,0.000495,120]
[393642864,1762872553041,-2063.35656899,0.000495,120]
[393642865,1762872553116,-3000.0,0.000495,120]
[393642866,1762872553197,-500.0,0.00049589,120]
[393642867,1762872553282,-500.0,0.00049589,120]
[393642868,1762872553365,-861.62685527,0.000498,30]
[393642869,1762872553442,-216.26796616,0.00049863,120]
[393642870,1762872553520,-500.0,0.00049863,120]
[393642871,1762872553589,-1784.12117369,0.00049885,120]
[393642872,1762872553658,-153.0,0.000499,120]
[393642873,1762872553737,-50000.0,0.0005,70]
[393642874,1762872553821,-1000.0,0.0005,120]
[393642875,1762872553910,-208.71127627,0.0005,120]
[393642876,1762872553997,-2469.05845474,0.0005,120]
[393642877,1762872554075,-707.00081722,0.0005,120]
[393642878,1762872554154,-225.02803257,0.0005,120]
[393642879,1762872554233,-473.40229044,0.0005,120]
[393642880,1762872554323,-165.0694921,0.0005,120]
[393642881,1762872554413,-3557.53503184,0.0005,120]
[393642882,1762872554494,-9648.82,0.0005,120]
[393642883,1762872554580,-154.05,0.0005,120]
[393642884,1762872554667,-1500.0,0.000501,30]
[393642885,1762872554747,-500.0,0.00050136,120]
[393642886,1762872554830,-155.0,0.000502,120]
[393642887,1762872554920,-1926.025,0.0005041,120]
[393642888,1762872555006,-519.48870255,0.0005041,120]
[393642889,1762872555091,-1319.74899204,0.000505,120]
[393642890,1762872555178,-3000.0,0.000505,120]
[393642891,1762872555266,-153.0,0.000506,120]
[393642892,1762872555362,-150.0,0.00050878,120]
[393642893,1762872555453,-471.75097575,0.000509,120]
[393642894,1762872555541,-317.66,0.000509,30]
[393642895,1762872555627,-372.91913031,0.00051,120]
[393642896,1762872555713,-694.31,0.00051,30]
[393642897,1762872555797,-150.0,0.00051052,120]
[393642898,1762872555878,-1500.0,0.000511,30]
[393642899,1762872555955,-155.0,0.000512,120]
[393642900,1762872556042,-150.0,0.00051288,120]
[393642901,1762872556126,-153.0,0.000513,120]
[393642902,1762872556211,-296.99997591,0.00051349,60]
[393642903,1762872556293,-2143.0,0.00051368,120]
[393642904,1762872556381,-1559.964,0.00051368,120]
[393642905,1762872556463,-906.0,0.00051368,120]
[393642906,1762872556540,-2311.23,0.00051369,120]
[393642907,1762872556623,-150.0,0.00051463,120]
[393642908,1762872556711,-293.99995181,0.00051568,60]
[393642909,1762872556787,-286.54,0.000517,90]
[393642910,1762872556868,-548.21406039,0.00051771,120]
[393642911,1762872556952,-199.28039857,0.00051771,120]
[393642912,1762872557025,-206.43783378,0.00051771,120]
[393642913,1762872557110,-293.99995181,0.00051842,60]
[393642914,1762872557197,-1000.0,0.00051999,120]
[393642915,1762872557275,-3107.0,0.00052014,120]
[393642916,1762872557358,-155.12881468,0.00052027,120]
[393642917,1762872557437,-781.85,0.00052055,120]
[393642918,1762872557511,-1500.0,0.000521,30]
[393642919,1762872557589,-153.0,0.000521,120]
[393642920,1762872557670,-244.99995984,0.00052171,60]
[393642921,1762872557750,-155.0,0.000522,120]
[393642922,1762872557827,-2696.435,0.00052328,120]
[393642923,1762872557907,-2526.69705551,0.00052466,120]
[393642924,1762872557982,-150.0,0.00052714,120]
[393642925,1762872558069,-153.0,0.000528,120]
[393642926,1762872558151,-317.66,0.000528,30]
[393642927,1762872558237,-694.31,0.000528,30]
[393642928,1762872558328,-2984.135,0.00052925,97]
[393642929,1762872558409,-1000.0,0.00053,120]
[393642930,1762872558485,-403.85453761,0.00053,120]
[393642931,1762872558561,-310.62003361,0.000531,30]
[393642932,1762872558638,-424.9,0.00053236,120]
[393642933,1762872558718,-3081.64,0.00053287,120]
[393642934,1762872558795,-155.0,0.000533,120]
[393642935,1762872558876,-1040.34572847,0.000534,120]
[393642936,1762872558952,-153.0,0.000535,120]
[393642937,1762872559029,-834.9,0.00053784,120]
[393642938,1762872559316,-1336.7,0.00053872,120]
[393642939,1762872559395,-1103.30980691,0.00054,120]
[393642940,1762872559476,-2000.0,0.00054,120]
[393642941,1762872559551,-2000.0,0.00054,120]
[393642942,1762872559624,-2000.0,0.00054,120]
[393642943,1762872559699,-2000.0,0.00054,120]
[393642944,1762872559774,-2000.0,0.00054,120]
[393642945,1762872559846,-284.90875871,0.00054,120]
[393642946,1762872559932,-1434.88856341,0.00054,120]
[393642947,1762872560019,-3466.845,0.00054246,120]
[393642948,1762872560109,-153.0,0.000543,120]
[393642949,1762872560199,-155.0,0.000543,120]
[393642950,1762872560283,-1000.0,0.00054322,30]
[393642951,1762872560369,-337.64362582,0.00054356,120]
[393642952,1762872560449,-2143.0,0.00054368,120]
[393642953,1762872560525,-906.0,0.00054368,120]
[393642954,1762872560602,-1000.0,0.00054497,30]
[393642955,1762872560682,-1336.7,0.00054507,120]
[393642956,1762872560756,-6770.26524439,0.00054648,120]
[393642957,1762872560831,-2000000.0,0.0005469,120]
[393642958,1762872560908,-1000.0,0.0005471,30]
[393642959,1762872560984,-500.0,0.00054794,120]
[393642960,1762872561064,-500.0,0.00054794,120]
[393642961,1762872561145,-500.0,0.00054794,120]
[393642962,1762872561228,-385.50582511,0.00054794,120]
[393642963,1762872561315,-600.0,0.00054795,39]
[393642964,1762872561576,151.0,0.00042886,120]
[393643004,1762872632313,-271.54991355,0.00029593,2]
[393643005,1762872632326,-111.59928275,0.00029593,2]
[393643007,1762872632336,-461.17361602,0.00029637,4]
[393643009,1762872632349,-788.82638398,0.00029637,4]
[393643011,1762872632359,-478.44322026,0.00029693,2]
[393643012,1762872632368,-300.0,0.00029736,2]
[393643014,1762872632378,-3638.73039576,0.00029737,2]
[393643016,1762872632393,-1323.62141765,0.00029737,2]
[393643018,1762872632404,-1009.87494404,0.00029737,2]
[393643020,1762872632415,-1845.22265336,0.00029737,2]
[393643021,1762872632426,-520.887,0.00029737,2]
[393643022,1762872632442,-3669.27502503,0.00029737,2]
[393643023,1762872632453,-1113.08233368,0.00029737,2]
[393643024,1762872632465,-250.75251002,0.00029737,2]
[393643025,1762872632476,-606.48713533,0.00029737,2]
[393643026,1762872632554,-501.82068701,0.00029737,2]
[393643027,1762872632566,-6819.72025327,0.00029737,2]
[393643028,1762872632575,-308.483177,0.00029799,2]
[393643029,1762872632585,-190.996592,0.00029799,2]
[393643031,1762872632595,-306.224424,0.00029799,2]
[393643032,1762872632604,-420.0,0.00032057,2]
[393643033,1762872632614,-308.483177,0.000323,2]
[393643035,1762872632623,-190.996592,0.000323,2]
[393643036,1762872632632,-306.224424,0.000323,2]
[393643037,1762872632642,-999.99,0.00033,2]
[393643038,1762872632651,-1726.54,0.00033,2]
[393643039,1762872632661,-8657.65,0.00033827,2]
[393643040,1762872632670,-287.0,0.0003456,2]
[393643041,1762872632682,-360.30300092,0.00034643,2]
[393643042,1762872632692,-158.03,0.00034692,2]
[393643043,1762872632701,-190.996592,0.000348,2]
[393643044,1762872632711,-308.483177,0.000348,2]
[393643045,1762872632720,-306.224424,0.000348,2]
[393643046,1762872632730,-279.9808,0.00035018,2]
[393643047,1762872632739,-4070.2655,0.00035018,2]
[393643048,1762872632749,-12334.3327,0.00035018,2]
[393643049,1762872632758,-5094.47901541,0.00035018,2]
[393643050,1762872632769,-1554.26248459,0.00035018,2]
[393643051,1762872632781,-151.0,0.00035097,2]
[393643052,1762872632792,-151.0,0.00035097,2]
[393643053,1762872632802,-151.0,0.00035097,2]
[393643054,1762872632813,-31748.16659669,0.00035118,2]
[393643055,1762872632824,-14211.86493328,0.00035118,2]
[393643056,1762872632833,-150.0,0.00035448,2]
[393643057,1762872632847,-150.0,0.00035769,2]
[393643058,1762872632859,-1000.0,0.00036075,2]
[393643059,1762872632870,-1000.0,0.00036099,30]
[393643060,1762872632879,-1000.0,0.00036099,30]
[393643061,1762872632889,-12500.0,0.00036152,2]
[393643062,1762872632899,-185.0,0.00036637,2]
[393643063,1762872632908,-2650.24046847,0.00036682,2]
[393643064,1762872632917,-185.0,0.00036723,2]
[393643065,1762872632927,-12500.0,0.00036795,2]
[393643066,1762872632943,-185.0,0.00037236,2]
[393643067,1762872632952,-161.956926,0.00037301,2]
[393643068,1762872632962,-190.996592,0.00037301,2]
[393643069,1762872632971,-308.483177,0.00037301,2]
[393643070,1762872632980,-306.224424,0.00037301,2]
[393643071,1762872632990,-822.0,0.00037338,2]
[393643072,1762872633000,-235.56,0.00037404,2]
[393643073,1762872633009,-350.4528957,0.00037428,2]
[393643089,1762872638235,-267.32450489,0.00029342,2]
[393643092,1762872638245,-649.5471043,0.00037428,2]
[393643094,1762872638255,-647.41357058,0.00037441,2]
[393643095,1762872638265,-5000.0,0.00037531,2]
[393643096,1762872638275,-5000.0,0.00037531,2]
[393643097,1762872638286,-5000.0,0.00037531,2]
[393643098,1762872638296,-5000.0,0.00037531,2]
[393643099,1762872638306,-198.13432149,0.00037678,2]
[393643100,1762872638318,-5240.4238094,0.00037678,2]
[393643101,1762872638327,-620.5761906,0.00037784,2]
[393643102,1762872638339,-527.29911998,0.00037784,2]
[393643103,1762872638350,-3860.37468942,0.00037784,2]
[393643104,1762872638360,-999.0,0.00037784,3]
[393643105,1762872638370,-2329.49,0.00037784,2]
[393643106,1762872638380,-8134.15,0.00037784,2]
[393643107,1762872638390,-2500.0,0.0003779,2]
[393643108,1762872638400,-185.0,0.00037941,2]
[393643109,1762872638410,-2000.0,0.00038,2]
[393643110,1762872638420,-960.811,0.00038,2]
[393643111,1762872638428,-610.0,0.00038137,2]
[393643112,1762872638439,-185.0,0.00038243,2]
[393643113,1762872638449,-185.0,0.00038332,2]
[393643114,1762872638458,-1000.0,0.00038356,2]
[393643115,1762872638468,-1000.0,0.00038356,2]
[393643117,1762872638478,-1000.0,0.00038356,2]
[393643118,1762872638488,-1000.0,0.00038356,2]
[393643119,1762872638498,-1000.0,0.00038356,2]
[393643120,1762872638508,-983.58832292,0.00038356,2]
[393643122,1762872638520,-16.41167708,0.00038356,2]
[393643123,1762872638529,-734.10239891,0.00038356,2]
[393643124,1762872640420,-265.89760109,0.00038356,2]
[393643125,1762872640430,-186.29327279,0.00038356,2]
[393643126,1762872640624,-813.70672721,0.00038356,2]
[393643127,1762872640634,-1000.0,0.00038356,2]
[393643128,1762872640643,-248.07288151,0.00038356,2]
[393643129,1762872640656,-751.92711849,0.00038356,2]
[393643130,1762872640666,-1000.0,0.00038356,2]
[393643131,1762872640675,-1000.0,0.00038356,2]
[393643132,1762872640685,-1084.87375295,0.00038356,2]
[393643133,1762872640695,-500.0,0.00038356,2]
[393643134,1762872640705,-159.94874886,0.00038356,20]
[393643135,1762872640714,-157.27636506,0.00038356,20]
[393643136,1762872640723,-910.61,0.00038356,14]
[393643137,1762872640734,-109.34305946,0.00038356,20]
[393643138,1762872640746,-74.12230301,0.00038356,20]
[393643139,1762872640756,-214.88642371,0.00038356,20]
[393643140,1762872640766,-333.2640016,0.00038356,7]
[393643141,1762872640775,-515.70746822,0.00038356,14]
[393643142,1762872640785,-500.0,0.00038548,2]
[393643144,1762872640795,-152.0,0.00038638,3]
[393643145,1762872640804,-349.92660346,0.00038781,2]
[393643146,1762872640816,-650.07339654,0.00038781,2]
[393643147,1762872640826,-822.0,0.0003893,2]
[393643148,1762872640835,-822.0,0.0003903,2]
[393643149,1762872640845,-500.0,0.00039099,2]
[393643150,1762872640854,-151.75612317,0.00039099,20]
[393643152,1762872640866,-500.0,0.00039099,2]
[393643154,1762872640875,-500.0,0.00039099,16]
[393643155,1762872640885,-304.9546394,0.00039099,5]
[393643156,1762872640897,-195.0453606,0.00039099,5]
[393643157,1762872640910,-71.47589004,0.00039099,3]
[393643158,1762872640922,-428.52410996,0.00039099,3]
[393643159,1762872640931,-195.47589004,0.00039099,20]